Workbook

Sheet Sheet1
A1: 标的清单
A2: 序号 | B2: 位置 | C2: 招租面积（㎡） | D2: 租期（年） | E2: 年租金（元) | F2: 保证金 | G2: 租金支付方式 | H2: 用途限制 | I2: 免租期 | J2: 是否存在原承租人 | K2: 原租赁合同截止日期 | L2: 是否办理不动产权证 | M2: 备注
A3: 1 | B3: 贵州省贵安新区苏贵产业园企业总部发展中心A栋1-1-2 | C3: 70.08 | D3: 3年 | E3: =C3*30*12 -> 25,228.80 | F3: =E3*0.2 -> 5046 | G3: 可按季度或半年度或年度支付 | H3: 无 | I3: 6个月 | J3: 无 | K3: 无 | L3: 是
A4: 2 | B4: 贵州省贵安新区苏贵产业园企业总部发展中心C栋1-1-3 | C4: 61.74 | D4: 3年 | E4: =C4*33*12 -> 24,449.04 | F4: =E4*0.2 -> 4890 | G4: 可按季度或半年度或年度支付 | H4: 无 | I4: 6个月 | J4: 无 | K4: 无 | L4: 是
A5: 3 | B5: 贵州省贵安新区苏贵产业园企业总部发展中心B栋1-10-6、1-10-7 | C5: 71.65 | D5: 3年 | E5: =C5*25*12 -> 21,495.00 | F5: 4299 | G5: 可按季度或半年度或年度支付 | H5: 无 | I5: 6个月 | J5: 是 | K5: 2026-03-19 | L5: 是
A6: 4 | B6: 贵州省贵安新区苏贵产业园企业总部发展中心C栋1-1-4 | C6: 61.74 | D6: 3年 | E6: 18,522.00 | F6: 3704 | G6: 可按季度或半年度或年度支付 | H6: 无 | I6: 6个月 | J6: 无 | K6: 无 | L6: 是
A7: 5 | B7: 贵州省贵安新区苏贵产业园企业总部发展中心B栋1-2-1 | C7: 157.14 | D7: 3年 | E7: 47,142.00 | F7: 9428 | G7: 可按季度或半年度或年度支付 | H7: 无 | I7: 6个月 | J7: 无 | K7: 无 | L7: 是
A8: 6 | B8: 贵州省贵安新区苏贵产业园企业总部发展中心B栋1-2-2 | C8: 145.73 | D8: 3年 | E8: 43,719.00 | F8: 8744 | G8: 可按季度或半年度或年度支付 | H8: 无 | I8: 6个月 | J8: 无 | K8: 无 | L8: 是
A9: 7 | B9: 贵州省贵安新区苏贵产业园企业总部发展中心B栋1-2-8 | C9: 58.26 | D9: 3年 | E9: 17,478.00 | F9: 3496 | G9: 可按季度或半年度或年度支付 | H9: 无 | I9: 6个月 | J9: 无 | K9: 无 | L9: 是
A10: 8 | B10: 贵州省贵安新区苏贵产业园企业总部发展中心B栋1-2-10 | C10: 46.69 | D10: 3年 | E10: 14,007.00 | F10: 2801 | G10: 可按季度或半年度或年度支付 | H10: 无 | I10: 6个月 | J10: 无 | K10: 无 | L10: 是
A11: 9 | B11: 贵州省贵安新区苏贵产业园企业总部发展中心B栋1-3-11 | C11: 32.90 | D11: 3年 | E11: 9,870.00 | F11: 1974 | G11: 可按季度或半年度或年度支付 | H11: 无 | I11: 6个月 | J11: 无 | K11: 无 | L11: 是
A12: 10 | B12: 贵州省贵安新区苏贵产业园企业总部发展中心B栋1-3-12 | C12: 70.06 | D12: 3年 | E12: 21,018.00 | F12: 4204 | G12: 可按季度或半年度或年度支付 | H12: 无 | I12: 6个月 | J12: 无 | K12: 无 | L12: 是
A13: 11 | B13: 贵州省贵安新区苏贵产业园企业总部发展中心B栋1-3-13 | C13: 50.54 | D13: 3年 | E13: 15,162.00 | F13: 3032 | G13: 可按季度或半年度或年度支付 | H13: 无 | I13: 6个月 | J13: 无 | K13: 无 | L13: 是
A14: 12 | B14: 贵州省贵安新区苏贵产业园企业总部发展中心B栋1-3-14 | C14: 52.84 | D14: 3年 | E14: 15,852.00 | F14: 3170 | G14: 可按季度或半年度或年度支付 | H14: 无 | I14: 6个月 | J14: 无 | K14: 无 | L14: 是
A15: 13 | B15: 贵州省贵安新区苏贵产业园企业总部发展中心B栋1-3-15 | C15: 72.31 | D15: 3年 | E15: 21,693.00 | F15: 4339 | G15: 可按季度或半年度或年度支付 | H15: 无 | I15: 6个月 | J15: 无 | K15: 无 | L15: 是
A16: 14 | B16: 贵州省贵安新区苏贵产业园企业总部发展中心B栋1-4-17 | C16: 74.60 | D16: 3年 | E16: 22,380.00 | F16: 4476 | G16: 可按季度或半年度或年度支付 | H16: 无 | I16: 6个月 | J16: 无 | K16: 无 | L16: 是
A17: 15 | B17: 贵州省贵安新区苏贵产业园企业总部发展中心B栋1-4-2 | C17: 143.67 | D17: 3年 | E17: 43,101.00 | F17: 8620 | G17: 可按季度或半年度或年度支付 | H17: 无 | I17: 6个月 | J17: 无 | K17: 无 | L17: 是
A18: 16 | B18: 贵州省贵安新区苏贵产业园企业总部发展中心B栋1-4-3 | C18: 146.65 | D18: 3年 | E18: 43,995.00 | F18: 8799 | G18: 可按季度或半年度或年度支付 | H18: 无 | I18: 6个月 | J18: 无 | K18: 无 | L18: 是
A19: 17 | B19: 贵州省贵安新区苏贵产业园企业总部发展中心B栋1-4-7 | C19: 119.26 | D19: 3年 | E19: =C19*25*12 -> 35,778.00 | F19: 7156 | G19: 可按季度或半年度或年度支付 | H19: 无 | I19: 6个月 | J19: 无 | K19: 无 | L19: 是
A20: 18 | B20: 贵州省贵安新区苏贵产业园企业总部发展中心B栋1-4-10 | C20: 33.96 | D20: 3年 | E20: 10,188.00 | F20: 2038 | G20: 可按季度或半年度或年度支付 | H20: 无 | I20: 6个月 | J20: 无 | K20: 无 | L20: 是
A21: 19 | B21: 贵州省贵安新区苏贵产业园企业总部发展中心B栋1-4-11 | C21: 29.86 | D21: 3年 | E21: 8,958.00 | F21: 1792 | G21: 可按季度或半年度或年度支付 | H21: 无 | I21: 6个月 | J21: 无 | K21: 无 | L21: 是
A22: 20 | B22: 贵州省贵安新区苏贵产业园企业总部发展中心B栋1-4-12 | C22: 90.48 | D22: 3年 | E22: 27,144.00 | F22: 5429 | G22: 可按季度或半年度或年度支付 | H22: 无 | I22: 6个月 | J22: 无 | K22: 无 | L22: 是
A23: 21 | B23: 贵州省贵安新区苏贵产业园企业总部发展中心B栋1-4-13 | C23: 64.00 | D23: 3年 | E23: 19,200.00 | F23: 3840 | G23: 可按季度或半年度或年度支付 | H23: 无 | I23: 6个月 | J23: 无 | K23: 无 | L23: 是
A24: 22 | B24: 贵州省贵安新区苏贵产业园企业总部发展中心B栋1-4-14 | C24: 72.20 | D24: 3年 | E24: 21,660.00 | F24: 4332 | G24: 可按季度或半年度或年度支付 | H24: 无 | I24: 6个月 | J24: 无 | K24: 无 | L24: 是
A25: 23 | B25: 贵州省贵安新区苏贵产业园企业总部发展中心B栋1-4-15 | C25: 50.54 | D25: 3年 | E25: 15,162.00 | F25: 3032 | G25: 可按季度或半年度或年度支付 | H25: 无 | I25: 6个月 | J25: 无 | K25: 无 | L25: 是
A26: 24 | B26: 贵州省贵安新区苏贵产业园企业总部发展中心B栋1-5-1 | C26: 153.16 | D26: 3年 | E26: 45,948.00 | F26: 9190 | G26: 可按季度或半年度或年度支付 | H26: 无 | I26: 6个月 | J26: 无 | K26: 无 | L26: 是
A27: 25 | B27: 贵州省贵安新区苏贵产业园企业总部发展中心B栋1-5-2 | C27: 143.69 | D27: 3年 | E27: 43,107.00 | F27: 8621 | G27: 可按季度或半年度或年度支付 | H27: 无 | I27: 6个月 | J27: 无 | K27: 无 | L27: 是
A28: 26 | B28: 贵州省贵安新区苏贵产业园企业总部发展中心B栋1-5-15 | C28: 72.20 | D28: 3年 | E28: 21,660.00 | F28: 4332 | G28: 可按季度或半年度或年度支付 | H28: 无 | I28: 6个月 | J28: 无 | K28: 无 | L28: 是
A29: 27 | B29: 贵州省贵安新区苏贵产业园企业总部发展中心B栋1-5-16 | C29: 50.54 | D29: 3年 | E29: 15,162.00 | F29: 3032 | G29: 可按季度或半年度或年度支付 | H29: 无 | I29: 6个月 | J29: 无 | K29: 无 | L29: 是
A30: 28 | B30: 贵州省贵安新区苏贵产业园企业总部发展中心B栋1-5-17 | C30: 50.54 | D30: 3年 | E30: 15,162.00 | F30: 3032 | G30: 可按季度或半年度或年度支付 | H30: 无 | I30: 6个月 | J30: 无 | K30: 无 | L30: 是
A31: 29 | B31: 贵州省贵安新区苏贵产业园企业总部发展中心B栋1-5-18 | C31: 74.6 | D31: 3年 | E31: 22,380.00 | F31: 4476 | G31: 可按季度或半年度或年度支付 | H31: 无 | I31: 6个月 | J31: 无 | K31: 无 | L31: 是
A32: 30 | B32: 贵州省贵安新区苏贵产业园企业总部发展中心B栋1-6-1 | C32: 153.16 | D32: 3年 | E32: 45,948.00 | F32: 9190 | G32: 可按季度或半年度或年度支付 | H32: 无 | I32: 6个月 | J32: 无 | K32: 无 | L32: 是
A33: 31 | B33: 贵州省贵安新区苏贵产业园企业总部发展中心B栋1-6-2 | C33: 143.67 | D33: 3年 | E33: 43,101.00 | F33: 8620 | G33: 可按季度或半年度或年度支付 | H33: 无 | I33: 6个月 | J33: 无 | K33: 无 | L33: 是
A34: 32 | B34: 贵州省贵安新区苏贵产业园企业总部发展中心B栋1-6-14 | C34: 72.2 | D34: 3年 | E34: 21,660.00 | F34: 4332 | G34: 可按季度或半年度或年度支付 | H34: 无 | I34: 6个月 | J34: 无 | K34: 无 | L34: 是
A35: 33 | B35: 贵州省贵安新区苏贵产业园企业总部发展中心B栋1-6-15 | C35: 50.54 | D35: 3年 | E35: 15,162.00 | F35: 3032 | G35: 可按季度或半年度或年度支付 | H35: 无 | I35: 6个月 | J35: 无 | K35: 无 | L35: 是
A36: 34 | B36: 贵州省贵安新区苏贵产业园企业总部发展中心B栋1-6-16 | C36: 50.54 | D36: 3年 | E36: 15,162.00 | F36: =E36*0.2 -> 3032 | G36: 可按季度或半年度或年度支付 | H36: 无 | I36: 6个月 | J36: 无 | K36: 无 | L36: 是
A37: 35 | B37: 贵州省贵安新区苏贵产业园企业总部发展中心B栋1-6-17 | C37: 74.6 | D37: 3年 | E37: =C37*25*12 -> 22,380.00 | F37: 4476 | G37: 可按季度或半年度或年度支付 | H37: 无 | I37: 6个月 | J37: 无 | K37: 无 | L37: 是
A38: 36 | B38: 贵州省贵安新区苏贵产业园企业总部发展中心B栋1-8-12 | C38: 90.48 | D38: 3年 | E38: 27,144.00 | F38: 5429 | G38: 可按季度或半年度或年度支付 | H38: 无 | I38: 6个月 | J38: 无 | K38: 无 | L38: 是
A39: 37 | B39: 贵州省贵安新区苏贵产业园企业总部发展中心B栋1-8-13 | C39: 34.21 | D39: 3年 | E39: 10,263.00 | F39: 2053 | G39: 可按季度或半年度或年度支付 | H39: 无 | I39: 6个月 | J39: 无 | K39: 无 | L39: 是
A40: 38 | B40: 贵州省贵安新区苏贵产业园企业总部发展中心B栋1-8-14 | C40: 32.90 | D40: 3年 | E40: 9,870.00 | F40: 1974 | G40: 可按季度或半年度或年度支付 | H40: 无 | I40: 6个月 | J40: 无 | K40: 无 | L40: 是
A41: 39 | B41: 贵州省贵安新区苏贵产业园企业总部发展中心B栋1-8-15 | C41: 72.20 | D41: 3年 | E41: 21,660.00 | F41: 4332 | G41: 可按季度或半年度或年度支付 | H41: 无 | I41: 6个月 | J41: 无 | K41: 无 | L41: 是
A42: 40 | B42: 贵州省贵安新区苏贵产业园企业总部发展中心B栋1-10-4 | C42: 140.59 | D42: 3年 | E42: 42,177.00 | F42: 8435 | G42: 可按季度或半年度或年度支付 | H42: 无 | I42: 6个月 | J42: 无 | K42: 无 | L42: 是
A43: 41 | B43: 贵州省贵安新区苏贵产业园企业总部发展中心B栋1-10-12 | C43: 26.99 | D43: 3年 | E43: 8,097.00 | F43: 1619 | G43: 可按季度或半年度或年度支付 | H43: 无 | I43: 6个月 | J43: 无 | K43: 无 | L43: 是
A44: 42 | B44: 贵州省贵安新区苏贵产业园企业总部发展中心B栋1-10-13 | C44: 93.51 | D44: 3年 | E44: 28,053.00 | F44: 5611 | G44: 可按季度或半年度或年度支付 | H44: 无 | I44: 6个月 | J44: 无 | K44: 无 | L44: 是
A45: 43 | B45: 贵州省贵安新区苏贵产业园企业总部发展中心B栋1-11-1 | C45: 42.16 | D45: 3年 | E45: 12,648.00 | F45: 2530 | G45: 可按季度或半年度或年度支付 | H45: 无 | I45: 6个月 | J45: 无 | K45: 无 | L45: 是
A46: 44 | B46: 贵州省贵安新区苏贵产业园企业总部发展中心B栋1-11-2 | C46: 113.34 | D46: 3年 | E46: 34,002.00 | F46: 6800 | G46: 可按季度或半年度或年度支付 | H46: 无 | I46: 6个月 | J46: 无 | K46: 无 | L46: 是
A47: 45 | B47: 贵州省贵安新区苏贵产业园企业总部发展中心B栋1-11-3 | C47: 127.35 | D47: 3年 | E47: 38,205.00 | F47: 7641 | G47: 可按季度或半年度或年度支付 | H47: 无 | I47: 6个月 | J47: 无 | K47: 无 | L47: 是
A48: 46 | B48: 贵州省贵安新区苏贵产业园企业总部发展中心B栋1-11-4 | C48: 127.45 | D48: 3年 | E48: 38,235.00 | F48: 7647 | G48: 可按季度或半年度或年度支付 | H48: 无 | I48: 6个月 | J48: 无 | K48: 无 | L48: 是
A49: 47 | B49: 贵州省贵安新区苏贵产业园企业总部发展中心B栋1-11-5 | C49: 115.11 | D49: 3年 | E49: 34,533.00 | F49: 6907 | G49: 可按季度或半年度或年度支付 | H49: 无 | I49: 6个月 | J49: 无 | K49: 无 | L49: 是
A50: 48 | B50: 贵州省贵安新区苏贵产业园企业总部发展中心B栋1-11-6 | C50: 40.74 | D50: 3年 | E50: 12,222.00 | F50: 2444 | G50: 可按季度或半年度或年度支付 | H50: 无 | I50: 6个月 | J50: 无 | K50: 无 | L50: 是
A51: 49 | B51: 贵州省贵安新区苏贵产业园企业总部发展中心B栋1-11-7 | C51: 31.83 | D51: 3年 | E51: 9,549.00 | F51: 1910 | G51: 可按季度或半年度或年度支付 | H51: 无 | I51: 6个月 | J51: 无 | K51: 无 | L51: 是
A52: 50 | B52: 贵州省贵安新区苏贵产业园企业总部发展中心B栋1-11-8 | C52: 84.48 | D52: 3年 | E52: 25,344.00 | F52: 5069 | G52: 可按季度或半年度或年度支付 | H52: 无 | I52: 6个月 | J52: 无 | K52: 无 | L52: 是
A53: 51 | B53: 贵州省贵安新区苏贵产业园企业总部发展中心B栋1-11-9 | C53: 68.10 | D53: 3年 | E53: 20,430.00 | F53: 4086 | G53: 可按季度或半年度或年度支付 | H53: 无 | I53: 6个月 | J53: 无 | K53: 无 | L53: 是
A54: 52 | B54: 贵州省贵安新区苏贵产业园企业总部发展中心B栋1-11-10 | C54: 32.59 | D54: 3年 | E54: 9,777.00 | F54: 1955 | G54: 可按季度或半年度或年度支付 | H54: 无 | I54: 6个月 | J54: 无 | K54: 无 | L54: 是
A55: 53 | B55: 贵州省贵安新区苏贵产业园企业总部发展中心B栋1-11-11 | C55: 85.16 | D55: 3年 | E55: 25,548.00 | F55: 5110 | G55: 可按季度或半年度或年度支付 | H55: 无 | I55: 6个月 | J55: 无 | K55: 无 | L55: 是
A56: 54 | B56: 贵州省贵安新区苏贵产业园企业总部发展中心B栋1-11-12 | C56: 32.82 | D56: 3年 | E56: 9,846.00 | F56: 1969 | G56: 可按季度或半年度或年度支付 | H56: 无 | I56: 6个月 | J56: 无 | K56: 无 | L56: 是
A57: 55 | B57: 贵州省贵安新区苏贵产业园企业总部发展中心B栋1-11-13 | C57: 56.82 | D57: 3年 | E57: 17,046.00 | F57: 3409 | G57: 可按季度或半年度或年度支付 | H57: 无 | I57: 6个月 | J57: 无 | K57: 无 | L57: 是
A58: 56 | B58: 贵州省贵安新区苏贵产业园企业总部发展中心B栋1-11-14 | C58: 34.75 | D58: 3年 | E58: 10,425.00 | F58: 2085 | G58: 可按季度或半年度或年度支付 | H58: 无 | I58: 6个月 | J58: 无 | K58: 无 | L58: 是
A59: 57 | B59: 贵州省贵安新区苏贵产业园企业总部发展中心B栋1-11-15 | C59: 30.07 | D59: 3年 | E59: 9,021.00 | F59: 1804 | G59: 可按季度或半年度或年度支付 | H59: 无 | I59: 6个月 | J59: 无 | K59: 无 | L59: 是
A60: 58 | B60: 贵州省贵安新区苏贵产业园企业总部发展中心B栋1-11-16 | C60: 38.31 | D60: 3年 | E60: 11,493.00 | F60: 2299 | G60: 可按季度或半年度或年度支付 | H60: 无 | I60: 6个月 | J60: 无 | K60: 无 | L60: 是
A61: 59 | B61: 贵州省贵安新区苏贵产业园企业总部发展中心B栋1-11-17 | C61: 68.21 | D61: 3年 | E61: 20,463.00 | F61: 4093 | G61: 可按季度或半年度或年度支付 | H61: 无 | I61: 6个月 | J61: 无 | K61: 无 | L61: 是
A62: 60 | B62: 贵州省贵安新区苏贵产业园企业总部发展中心B栋1-11-18 | C62: 85.45 | D62: 3年 | E62: 25,635.00 | F62: 5127 | G62: 可按季度或半年度或年度支付 | H62: 无 | I62: 6个月 | J62: 无 | K62: 无 | L62: 是
A63: 61 | B63: 贵州省贵安新区苏贵产业园企业总部发展中心B栋1-11-19 | C63: 30.89 | D63: 3年 | E63: 9,267.00 | F63: 1853 | G63: 可按季度或半年度或年度支付 | H63: 无 | I63: 6个月 | J63: 无 | K63: 无 | L63: 是
A64: 62 | B64: 贵州省贵安新区苏贵产业园企业总部发展中心B栋1-12-1 | C64: 31.82 | D64: 3年 | E64: 9,546.00 | F64: 1909 | G64: 可按季度或半年度或年度支付 | H64: 无 | I64: 6个月 | J64: 无 | K64: 无 | L64: 是
A65: 63 | B65: 贵州省贵安新区苏贵产业园企业总部发展中心B栋1-12-2 | C65: 91.56 | D65: 3年 | E65: 27,468.00 | F65: 5494 | G65: 可按季度或半年度或年度支付 | H65: 无 | I65: 6个月 | J65: 无 | K65: 无 | L65: 是
A66: 64 | B66: 贵州省贵安新区苏贵产业园企业总部发展中心B栋1-12-3 | C66: 109.80 | D66: 3年 | E66: 32,940.00 | F66: 6588 | G66: 可按季度或半年度或年度支付 | H66: 无 | I66: 6个月 | J66: 无 | K66: 无 | L66: 是
A67: 65 | B67: 贵州省贵安新区苏贵产业园企业总部发展中心B栋1-12-11 | C67: 28.97 | D67: 3年 | E67: 8,691.00 | F67: 1738 | G67: 可按季度或半年度或年度支付 | H67: 无 | I67: 6个月 | J67: 无 | K67: 无 | L67: 是
A68: 66 | B68: 贵州省贵安新区苏贵产业园企业总部发展中心B栋1-12-12 | C68: 35.11 | D68: 3年 | E68: 10,533.00 | F68: =E68*0.2 -> 2107 | G68: 可按季度或半年度或年度支付 | H68: 无 | I68: 6个月 | J68: 无 | K68: 无 | L68: 是
A69: 67 | B69: 贵州省贵安新区苏贵产业园企业总部发展中心B栋1-12-6 | C69: 31.82 | D69: 3年 | E69: =C69*25*12 -> 9,546.00 | F69: 1909 | G69: 可按季度或半年度或年度支付 | H69: 无 | I69: 6个月 | J69: 无 | K69: 无 | L69: 是
A70: 68 | B70: 贵州省贵安新区苏贵产业园企业总部发展中心B栋1-12-14 | C70: 58.55 | D70: 3年 | E70: 17,565.00 | F70: 3513 | G70: 可按季度或半年度或年度支付 | H70: 无 | I70: 6个月 | J70: 无 | K70: 无 | L70: 是
A71: 69 | B71: 贵州省贵安新区苏贵产业园企业总部发展中心B栋1-12-15 | C71: 31.75 | D71: 3年 | E71: 9,525.00 | F71: 1905 | G71: 可按季度或半年度或年度支付 | H71: 无 | I71: 6个月 | J71: 无 | K71: 无 | L71: 是
A72: 70 | B72: 贵州省贵安新区苏贵产业园企业总部发展中心B栋1-13-2 | C72: 76.24 | D72: 3年 | E72: 22,872.00 | F72: 4574 | G72: 可按季度或半年度或年度支付 | H72: 无 | I72: 6个月 | J72: 无 | K72: 无 | L72: 是
A73: 71 | B73: 贵州省贵安新区苏贵产业园企业总部发展中心B栋1-13-3 | C73: 49.87 | D73: 3年 | E73: 14,961.00 | F73: 2992 | G73: 可按季度或半年度或年度支付 | H73: 无 | I73: 6个月 | J73: 无 | K73: 无 | L73: 是
A74: 72 | B74: 贵州省贵安新区苏贵产业园企业总部发展中心B栋1-13-4 | C74: 145.15 | D74: 3年 | E74: 43,545.00 | F74: 8709 | G74: 可按季度或半年度或年度支付 | H74: 无 | I74: 6个月 | J74: 无 | K74: 无 | L74: 是
A75: 73 | B75: 贵州省贵安新区苏贵产业园企业总部发展中心B栋1-13-5 | C75: 44.76 | D75: 3年 | E75: 13,428.00 | F75: 2686 | G75: 可按季度或半年度或年度支付 | H75: 无 | I75: 6个月 | J75: 无 | K75: 无 | L75: 是
A76: 74 | B76: 贵州省贵安新区苏贵产业园企业总部发展中心C栋1-4-1 | C76: 53.56 | D76: 3年 | E76: 16,068.00 | F76: 3214 | G76: 可按季度或半年度或年度支付 | H76: 无 | I76: 6个月 | J76: 无 | K76: 无 | L76: 是
A77: 75 | B77: 贵州省贵安新区苏贵产业园企业总部发展中心C栋1-4-2 | C77: 64.86 | D77: 3年 | E77: 19,458.00 | F77: 3892 | G77: 可按季度或半年度或年度支付 | H77: 无 | I77: 6个月 | J77: 无 | K77: 无 | L77: 是
A78: 76 | B78: 贵州省贵安新区苏贵产业园企业总部发展中心C栋1-4-3 | C78: 64.86 | D78: 3年 | E78: 19,458.00 | F78: 3892 | G78: 可按季度或半年度或年度支付 | H78: 无 | I78: 6个月 | J78: 无 | K78: 无 | L78: 是
A79: 77 | B79: 贵州省贵安新区苏贵产业园企业总部发展中心C栋1-4-4 | C79: 72.85 | D79: 3年 | E79: 21,855.00 | F79: 4371 | G79: 可按季度或半年度或年度支付 | H79: 无 | I79: 6个月 | J79: 无 | K79: 无 | L79: 是
A80: 78 | B80: 贵州省贵安新区苏贵产业园企业总部发展中心C栋1-4-7 | C80: 43.06 | D80: 3年 | E80: 12,918.00 | F80: 2584 | G80: 可按季度或半年度或年度支付 | H80: 无 | I80: 6个月 | J80: 无 | K80: 无 | L80: 是
A81: 79 | B81: 贵州省贵安新区苏贵产业园企业总部发展中心C栋1-4-8 | C81: 152.43 | D81: 3年 | E81: 45,729.00 | F81: 9146 | G81: 可按季度或半年度或年度支付 | H81: 无 | I81: 6个月 | J81: 无 | K81: 无 | L81: 是
A82: 80 | B82: 贵州省贵安新区苏贵产业园企业总部发展中心C栋1-4-9 | C82: 147.65 | D82: 3年 | E82: 44,295.00 | F82: 8859 | G82: 可按季度或半年度或年度支付 | H82: 无 | I82: 6个月 | J82: 无 | K82: 无 | L82: 是
A83: 81 | B83: 贵州省贵安新区苏贵产业园企业总部发展中心C栋1-4-10 | C83: 35.88 | D83: 3年 | E83: 10,764.00 | F83: 2153 | G83: 可按季度或半年度或年度支付 | H83: 无 | I83: 6个月 | J83: 无 | K83: 无 | L83: 是
A84: 82 | B84: 贵州省贵安新区苏贵产业园企业总部发展中心C栋1-4-11 | C84: 114.95 | D84: 3年 | E84: 34,485.00 | F84: 6897 | G84: 可按季度或半年度或年度支付 | H84: 无 | I84: 6个月 | J84: 无 | K84: 无 | L84: 是
A85: 83 | B85: 贵州省贵安新区苏贵产业园企业总部发展中心C栋1-4-12 | C85: 126.76 | D85: 3年 | E85: 38,028.00 | F85: 7606 | G85: 可按季度或半年度或年度支付 | H85: 无 | I85: 6个月 | J85: 无 | K85: 无 | L85: 是
A86: 84 | B86: 贵州省贵安新区苏贵产业园企业总部发展中心C栋1-4-13 | C86: 114.23 | D86: 3年 | E86: 34,269.00 | F86: 6854 | G86: 可按季度或半年度或年度支付 | H86: 无 | I86: 6个月 | J86: 无 | K86: 无 | L86: 是
A87: 85 | B87: 贵州省贵安新区苏贵产业园企业总部发展中心C栋1-4-14 | C87: 66.22 | D87: 3年 | E87: 19,866.00 | F87: 3973 | G87: 可按季度或半年度或年度支付 | H87: 无 | I87: 6个月 | J87: 无 | K87: 无 | L87: 是
A88: 86 | B88: 贵州省贵安新区苏贵产业园企业总部发展中心C栋1-11-1 | C88: 44.47 | D88: 3年 | E88: 13,341.00 | F88: 2668 | G88: 可按季度或半年度或年度支付 | H88: 无 | I88: 6个月 | J88: 无 | K88: 无 | L88: 是
A89: 87 | B89: 贵州省贵安新区苏贵产业园企业总部发展中心C栋1-11-2 | C89: 134.15 | D89: 3年 | E89: 40,245.00 | F89: 8049 | G89: 可按季度或半年度或年度支付 | H89: 无 | I89: 6个月 | J89: 无 | K89: 无 | L89: 是
A90: 88 | B90: 贵州省贵安新区苏贵产业园企业总部发展中心C栋1-11-4 | C90: 80.80 | D90: 3年 | E90: 24,240.00 | F90: 4848 | G90: 可按季度或半年度或年度支付 | H90: 无 | I90: 6个月 | J90: 无 | K90: 无 | L90: 是
A91: 89 | B91: 贵州省贵安新区苏贵产业园企业总部发展中心C栋1-11-5 | C91: 143.11 | D91: 3年 | E91: 42,933.00 | F91: 8587 | G91: 可按季度或半年度或年度支付 | H91: 无 | I91: 6个月 | J91: 无 | K91: 无 | L91: 是
A92: 90 | B92: 贵州省贵安新区苏贵产业园企业总部发展中心C栋1-11-9 | C92: 107.08 | D92: 3年 | E92: 32,124.00 | F92: 6425 | G92: 可按季度或半年度或年度支付 | H92: 无 | I92: 6个月 | J92: 无 | K92: 无 | L92: 是
A93: 91 | B93: 贵州省贵安新区苏贵产业园企业总部发展中心C栋1-11-10 | C93: 54.68 | D93: 3年 | E93: 16,404.00 | F93: 3281 | G93: 可按季度或半年度或年度支付 | H93: 无 | I93: 6个月 | J93: 无 | K93: 无 | L93: 是
A94: 92 | B94: 贵州省贵安新区苏贵产业园企业总部发展中心C栋1-11-11 | C94: 67.93 | D94: 3年 | E94: 20,379.00 | F94: 4076 | G94: 可按季度或半年度或年度支付 | H94: 无 | I94: 6个月 | J94: 无 | K94: 无 | L94: 是
A95: 93 | B95: 贵州省贵安新区苏贵产业园企业总部发展中心C栋1-11-12 | C95: 90.02 | D95: 3年 | E95: 27,006.00 | F95: 5401 | G95: 可按季度或半年度或年度支付 | H95: 无 | I95: 6个月 | J95: 无 | K95: 无 | L95: 是
A96: 94 | B96: 贵州省贵安新区苏贵产业园企业总部发展中心C栋1-11-13 | C96: 93.62 | D96: 3年 | E96: 28,086.00 | F96: 5617 | G96: 可按季度或半年度或年度支付 | H96: 无 | I96: 6个月 | J96: 无 | K96: 无 | L96: 是
A97: 95 | B97: 贵州省贵安新区苏贵产业园企业总部发展中心C栋1-11-18 | C97: 54.68 | D97: 3年 | E97: 16,404.00 | F97: 3281 | G97: 可按季度或半年度或年度支付 | H97: 无 | I97: 6个月 | J97: 无 | K97: 无 | L97: 是
A98: 96 | B98: 贵州省贵安新区苏贵产业园企业总部发展中心C栋1-11-19 | C98: 85.45 | D98: 3年 | E98: 25,635.00 | F98: 5127 | G98: 可按季度或半年度或年度支付 | H98: 无 | I98: 6个月 | J98: 无 | K98: 无 | L98: 是
A99: 97 | B99: 贵州省贵安新区苏贵产业园企业总部发展中心C栋1-12-3 | C99: 109.89 | D99: 3年 | E99: 32,967.00 | F99: 6593 | G99: 可按季度或半年度或年度支付 | H99: 无 | I99: 6个月 | J99: 无 | K99: 无 | L99: 是
A100: 98 | B100: 贵州省贵安新区苏贵产业园企业总部发展中心C栋1-12-4 | C100: 52.11 | D100: 3年 | E100: 15,633.00 | F100: 3127 | G100: 可按季度或半年度或年度支付 | H100: 无 | I100: 6个月 | J100: 无 | K100: 无 | L100: 是
A101: 99 | B101: 贵州省贵安新区苏贵产业园企业总部发展中心C栋1-12-5 | C101: 42.95 | D101: 3年 | E101: 12,885.00 | F101: 2577 | G101: 可按季度或半年度或年度支付 | H101: 无 | I101: 6个月 | J101: 无 | K101: 无 | L101: 是
A102: 100 | B102: 贵州省贵安新区苏贵产业园企业总部发展中心C栋1-12-6 | C102: 127.08 | D102: 3年 | E102: 38,124.00 | F102: 7625 | G102: 可按季度或半年度或年度支付 | H102: 无 | I102: 6个月 | J102: 无 | K102: 无 | L102: 是
A103: 101 | B103: 贵州省贵安新区苏贵产业园企业总部发展中心C栋1-12-7 | C103: 53.27 | D103: 3年 | E103: 15,981.00 | F103: 3196 | G103: 可按季度或半年度或年度支付 | H103: 无 | I103: 6个月 | J103: 无 | K103: 无 | L103: 是
A104: 102 | B104: 贵州省贵安新区苏贵产业园企业总部发展中心C栋1-12-8 | C104: 53.62 | D104: 3年 | E104: 16,086.00 | F104: 3217 | G104: 可按季度或半年度或年度支付 | H104: 无 | I104: 6个月 | J104: 无 | K104: 无 | L104: 是

Sheet Sheet2

Sheet Sheet3
